bitfinex-derivatives/quotes_BNBF0:USTF0_20250617
["timestamp","ask_amount","ask_price","bid_price","bid_amount"]
[1750200344836,1.1531685,647.24,646.51,1.53983901]
[1750200345839,1.1531685,647.23,646.52,1.53983901]
[1750200347239,1.1531685,647.23,646.53,1.53983901]
[1750200348642,1.1531685,647.23,646.54,1.141]
[1750200350344,1.1531685,647.22,646.54,1.141]
[1750200350844,1.1531685,647.23,646.54,1.141]
[1750200351239,1.1531685,647.22,646.54,2.68083901]
[1750200351439,1.1531685,647.22,646.54,1.141]
[1750200352440,1.1531685,647.26,646.54,1.141]
[1750200352644,1.1531685,647.21,646.54,1.141]
[1750200353245,1.1531685,647.19,646.54,1.141]
[1750200354347,1.1531685,647.18,646.54,1.141]
[1750200354642,1.1531685,647.19,646.54,1.141]
[1750200355344,1.1531685,647.18,646.54,1.141]
[1750200357244,1.1531685,647.17,646.54,1.141]
[1750200358549,1.1531685,647.16,646.54,1.141]
[1750200359255,1.1531685,647.15,646.54,1.141]
[1750200360255,0.2689616,647.4,646.54,1.141]
[1750200360256,1.1531685,647.14,646.54,1.141]
[1750200361256,1.1531685,647.13,646.54,1.141]
[1750200362354,1.1531685,647.09,646.54,1.141]
[1750200363054,1.1531685,647.08,646.54,1.141]
[1750200364560,1.1531685,647.08,646.55,1.45]
[1750200368661,1.1531685,647.07,646.55,1.45]
[1750200371163,1.1531685,647.06,646.55,1.45]
[1750200371362,1.1531685,647.07,646.55,1.45]
[1750200373459,1.1531685,647.06,646.55,1.45]
[1750200374166,1.1531685,647.07,646.55,1.45]
[1750200374466,1.1531685,647.06,646.55,1.45]
[1750200377068,1.1531685,647.06,646.56,1.333]
[1750200380569,1.1531685,647.05,646.56,1.333]
[1750200384367,1.1531685,647.06,646.56,1.333]
[1750200384972,1.1531685,647.05,646.56,1.333]
[1750200386073,1.1531685,647.05,646.5,1.53983901]
[1750200387371,1.1531685,647.06,646.48,0.30936765]
[1750200387575,1.1531685,646.98,646.48,0.30936765]
[1750200387876,1.1531685,646.97,646.35,1.53983901]
[1750200388075,1.1531685,646.96,646.35,1.53983901]
[1750200388376,1.1531685,646.95,646.32,1.53983901]
[1750200388675,1.1531685,646.94,646.32,1.53983901]
[1750200388975,1.1531685,646.95,646.32,1.53983901]
[1750200389276,1.1531685,646.96,646.32,1.53983901]
[1750200389775,1.1531685,646.96,646.33,1.173]
[1750200389971,1.1531685,646.96,646.33,2.145]
[1750200390471,1.1531685,646.97,646.33,2.145]
[1750200391572,1.1531685,646.99,646.33,2.145]
[1750200393380,1.1531685,647.0,646.33,2.145]
[1750200394081,1.1531685,646.99,646.33,2.145]
[1750200394277,1.1531685,647.0,646.33,2.145]
[1750200396877,1.1531685,646.99,646.33,2.145]
[1750200399876,1.1531685,647.0,646.33,2.145]
[1750200401281,1.1531685,646.97,646.34,1.53983901]
[1750200401780,0.2689616,647.4,646.34,1.53983901]
[1750200401781,1.1531685,646.99,646.34,1.53983901]
[1750200402678,1.1531685,646.99,646.35,1.53983901]
[1750200404582,1.1531685,647.0,646.35,1.53983901]
[1750200405077,1.1531685,646.99,646.36,1.53983901]
[1750200406879,1.1531685,646.99,646.37,1.53983901]
[1750200407281,1.1531685,646.98,646.38,1.53983901]
[1750200407679,1.1531685,646.99,646.38,1.53983901]
[1750200409384,1.1531685,646.98,646.39,1.53983901]
[1750200411085,1.1531685,647.0,646.34,1.53983901]
[1750200411585,1.1531685,646.99,646.35,1.53983901]
[1750200412186,1.1531685,646.99,646.36,0.986]
[1750200415688,1.1531685,647.01,646.36,0.986]
[1750200420591,1.1531685,647.0,646.36,0.986]
[1750200421489,1.1531685,646.99,646.36,0.986]
[1750200422790,1.1531685,647.03,646.36,0.986]
[1750200423290,1.1531685,647.04,646.36,0.986]
[1750200423494,1.1562924,647.05,646.36,2.52583901]
[1750200424091,1.1562924,647.06,646.36,2.52583901]
[1750200424895,1.1562924,647.05,646.36,2.52583901]
[1750200425497,1.1562924,647.03,646.41,1.53983901]
[1750200425796,1.1562924,647.05,646.42,1.53983901]
[1750200426594,1.1562924,647.04,646.45,1.53983901]
[1750200427001,1.1562924,647.05,646.45,1.53983901]
[1750200428801,1.53755801,647.16,646.45,1.53983901]
[1750200429906,1.15641052,647.03,646.43,1.53983901]
[1750200431508,1.15641052,647.01,646.43,1.53983901]
[1750200432003,1.15641052,647.01,646.42,1.53983901]
[1750200432204,1.53755801,647.13,646.42,1.53983901]
[1750200433103,0.47794757,647.23,646.28,0.26904166]
[1750200433104,1.15648948,647.0,646.44,1.53983901]
[1750200433302,1.15648948,647.01,646.42,1.53983901]
[1750200433603,1.15648948,647.01,646.45,1.612]
[1750200434105,2.30633701,647.25,646.45,1.612]
[1750200434106,1.15648948,647.06,646.45,1.612]
[1750200434409,1.15648948,647.06,646.46,1.451]
[1750200440210,1.15648948,647.05,646.46,1.451]
[1750200443811,1.15648948,646.98,646.46,2.99083901]
[1750200444216,1.15648948,646.98,646.47,1.53983901]
[1750200447519,1.15648948,646.98,646.46,1.53983901]
[1750200450929,1.15648948,647.01,646.47,1.451]
[1750200451825,1.15648948,647.0,646.47,1.451]
[1750200458433,1.15648948,647.03,646.47,1.451]
[1750200459931,1.15648948,647.03,646.48,1.066]
[1750200460234,1.15648948,647.02,646.48,1.066]
[1750200460430,1.15648948,647.03,646.48,1.066]
[1750200460930,1.15648948,647.02,646.48,1.066]
[1750200468341,1.15648948,646.98,646.48,1.066]
[1750200468542,1.15648948,646.95,646.48,1.066]
[1750200468740,1.15648948,646.94,646.48,1.066]
[1750200469140,1.15648948,646.95,646.48,1.066]
[1750200471040,1.15648948,646.94,646.48,1.066]
[1750200471244,1.15648948,646.91,646.48,1.066]
[1750200471444,1.15648948,646.89,646.48,1.066]
[1750200471939,1.15648948,646.87,646.48,1.066]
[1750200472140,1.15648948,646.86,646.48,1.066]
[1750200472341,1.15648948,646.83,646.48,1.066]
[1750200472540,1.15648948,646.82,646.48,1.066]
[1750200472845,1.15648948,646.83,646.48,1.066]
[1750200473041,1.15648948,646.82,646.48,1.066]
[1750200473742,1.15648948,646.83,646.48,1.066]
[1750200474046,1.15648948,646.85,646.48,1.066]
[1750200474546,1.15648948,646.86,646.48,1.066]
[1750200475346,1.15648948,646.89,646.48,1.066]
[1750200475546,1.15648948,646.9,646.48,1.066]
[1750200475846,1.15648948,646.89,646.48,1.066]
[1750200476246,1.15648948,646.9,646.48,1.066]
[1750200477544,1.15648948,646.91,646.48,1.066]
[1750200478445,1.15648948,646.92,646.48,1.066]
[1750200478651,1.15648948,646.93,646.48,1.066]
[1750200482151,1.15648948,646.92,646.49,1.18]
[1750200482847,1.15648948,646.91,646.49,1.18]
[1750200483051,1.15648948,646.92,646.49,1.18]
[1750200483352,1.15648948,646.91,646.49,1.18]
[1750200483849,1.15648948,646.92,646.49,1.18]
[1750200484148,1.15648948,646.91,646.49,1.18]
[1750200484351,1.15648948,646.92,646.49,1.18]
[1750200485156,1.15648948,646.91,646.49,1.18]
[1750200486458,1.15648948,646.9,646.49,1.18]
[1750200487055,1.15648948,646.89,646.49,1.18]
[1750200487255,1.15648948,646.9,646.49,1.18]
[1750200487454,1.15648948,646.89,646.49,1.18]
[1750200488363,1.15648948,646.88,646.49,1.18]
[1750200490961,1.15648948,646.9,646.49,1.18]
[1750200492061,1.15648948,646.9,646.5,1.421]
[1750200493669,1.15648948,646.94,646.5,1.421]
[1750200493868,1.15648948,646.93,646.5,1.421]
[1750200500065,1.15648948,646.92,646.5,1.421]
[1750200501875,1.15648948,646.9,646.5,1.421]
[1750200502074,1.15648948,646.91,646.5,1.421]
[1750200503173,1.15648948,646.96,646.5,1.421]
[1750200503373,1.15648948,646.97,646.5,1.421]
[1750200503569,1.15648948,646.96,646.5,1.421]
[1750200510278,1.15648948,646.96,646.51,1.45]
[1750200512373,1.15648948,646.95,646.51,1.45]
[1750200513074,1.15648948,646.89,646.51,1.45]
[1750200513980,1.15648948,646.88,646.51,1.45]
[1750200515581,1.15648948,646.87,646.51,1.45]
[1750200517281,1.15648948,646.88,646.51,1.45]
[1750200519886,1.15648948,646.87,646.51,1.45]
[1750200520782,1.15648948,646.88,646.51,1.45]
[1750200521585,1.15648948,646.87,646.51,1.45]
[1750200522885,0.2689616,647.4,646.51,1.45]
[1750200522886,1.15648948,646.9,646.51,1.45]
[1750200527389,1.15648948,646.88,646.51,1.45]
[1750200528590,1.15648948,646.87,646.51,1.45]
[1750200528791,1.15648948,646.9,646.51,1.45]
[1750200530093,1.15799255,646.9,646.51,1.45]
[1750200530492,1.15799255,646.89,646.51,1.45]
[1750200531492,1.15799255,646.9,646.51,1.45]
[1750200532087,1.15799255,646.93,646.51,1.45]
[1750200532289,1.15799255,646.96,646.51,1.45]
[1750200532492,1.15799255,646.98,646.51,1.45]
[1750200532886,1.53755801,647.11,646.51,1.45]
[1750200532887,1.15799255,647.01,646.51,1.45]
[1750200533090,1.15799255,647.01,646.52,1.175]
[1750200533288,1.15799255,647.02,646.52,1.175]
[1750200533693,1.15799255,647.03,646.52,1.175]
[1750200534190,1.15799255,647.08,646.52,1.175]
[1750200534393,1.15799255,647.07,646.52,1.175]
[1750200534994,1.15799255,647.08,646.52,1.175]
[1750200535296,1.15799255,647.09,646.52,1.175]
[1750200536194,1.15799255,647.1,646.52,1.175]
[1750200537797,1.15799255,647.16,646.52,1.175]
[1750200537998,1.15799255,647.22,646.52,1.175]
[1750200538297,1.15799255,647.24,646.52,1.175]
[1750200538799,1.15799255,647.25,646.52,1.175]
[1750200538995,1.15799255,647.27,646.52,1.175]
[1750200539199,1.15799255,647.28,646.52,1.175]
[1750200540899,1.15799255,647.3,646.52,1.175]
[1750200541099,1.15799255,647.3,646.53,1.45]
[1750200542598,1.15799255,647.31,646.53,1.45]
[1750200543400,1.15799255,647.31,646.53,1.75934372]
[1750200543604,1.15799255,647.32,646.53,1.75934372]
[1750200543804,1.15799255,647.34,646.53,1.75934372]
[1750200544400,1.15799255,647.38,646.54,0.30933894]
[1750200544606,1.15799255,647.39,646.54,0.30933894]
[1750200545204,1.15799255,647.42,646.54,0.30933894]
[1750200545602,1.15799255,647.43,646.54,0.30933894]
[1750200545800,0.26891276,647.53,646.54,0.30933894]
[1750200545801,1.15799255,647.46,646.54,0.30933894]
[1750200546006,1.15799255,647.43,646.54,0.30933894]
[1750200546806,1.15799255,647.44,646.54,0.30933894]
[1750200547808,1.15799255,647.43,646.54,0.30933894]
[1750200548006,1.15799255,647.42,646.54,0.30933894]
[1750200548407,1.15799255,647.43,646.54,0.30933894]
[1750200549412,1.15799255,647.42,646.54,0.30933894]
[1750200550304,1.15799255,647.43,646.54,0.30933894]
[1750200553510,1.15799255,647.44,646.54,0.30933894]
[1750200556614,1.15799255,647.42,646.54,0.30933894]
[1750200558718,1.15799255,647.43,646.54,0.30933894]
[1750200558920,1.15799255,647.44,646.54,0.30933894]
[1750200563519,1.15799255,647.43,646.54,0.30933894]
[1750200564819,1.15799255,647.38,646.54,0.30933894]
[1750200565117,1.15799255,647.36,646.54,0.30933894]
[1750200565322,1.15799255,647.35,646.54,0.30933894]
[1750200565522,1.15799255,647.34,646.54,0.30933894]
[1750200565918,1.15799255,647.32,646.54,0.30933894]
[1750200567018,1.15799255,647.31,646.54,0.30933894]
[1750200568723,1.15799255,647.3,646.54,0.30933894]
[1750200569920,1.15799255,647.29,646.54,0.30933894]
[1750200570123,1.15799255,647.3,646.54,0.30933894]
[1750200570323,1.15799255,647.29,646.54,0.30933894]
[1750200570623,1.15799255,647.3,646.54,0.30933894]
[1750200571221,1.15799255,647.3,646.55,1.147]
[1750200571525,1.15799255,647.29,646.55,1.147]
[1750200574326,1.15799255,647.28,646.55,1.147]
[1750200576628,1.15799255,647.27,646.55,1.147]
[1750200578831,1.15799255,647.26,646.56,1.389]
[1750200581232,1.15799255,647.25,646.56,1.389]
[1750200583228,1.15799255,647.24,646.56,1.389]
[1750200583627,1.15799255,647.25,646.56,1.389]
[1750200584232,1.15799255,647.24,646.56,1.389]
[1750200587229,1.15799255,647.23,646.56,1.389]
[1750200587933,1.15799255,647.28,646.56,1.389]
[1750200588536,1.15799255,647.27,646.56,1.389]
[1750200590231,1.15799255,647.26,646.56,1.389]
[1750200590634,1.15799255,647.25,646.56,1.389]
[1750200591332,1.15799255,647.24,646.56,1.389]
[1750200591835,1.53755801,647.39,646.56,1.389]
[1750200592031,1.15444827,647.24,646.56,1.389]
[1750200592230,1.15444827,647.23,646.56,1.389]
[1750200594131,1.15444827,647.22,646.56,1.389]
[1750200596634,1.15444827,647.22,646.57,1.45]
[1750200597334,1.15444827,647.21,646.57,1.45]
[1750200597732,1.15444827,647.17,646.57,2.98983901]
[1750200603942,1.15444827,647.17,646.57,1.45]
[1750200604140,1.15444827,647.17,646.58,1.512]
[1750200604643,1.15444827,647.22,646.58,1.512]
[1750200604846,1.15444827,647.24,646.58,1.512]
[1750200605046,1.15444827,647.3,646.58,1.512]
[1750200605647,1.15444827,647.31,646.58,1.512]
[1750200606844,1.15444827,647.3,646.58,1.512]
[1750200608246,1.15444827,647.33,646.58,1.512]
[1750200608446,1.15444827,647.35,646.58,1.512]
[1750200611050,1.15444827,647.35,646.58,1.8213198]
[1750200612846,1.15444827,647.35,646.58,3.36115881]
[1750200613243,1.15444827,647.35,646.58,1.8213198]
[1750200614651,1.15444827,647.32,646.66,1.53983901]
[1750200614946,1.15444827,647.33,646.67,1.53983901]
[1750200616847,1.15444827,647.33,646.68,1.45]
[1750200617053,0.26893666,647.44,646.68,1.45]
[1750200618648,1.1553607,647.32,646.69,1.53870217]
[1750200618850,1.8094176,647.44,646.69,1.53870217]
[1750200619048,1.1553607,647.32,646.69,1.53870217]
[1750200619648,1.54048094,647.44,646.69,1.53870217]
[1750200620051,2.57961339,647.55,646.68,1.45]
[1750200620452,1.15535562,647.36,646.71,1.53847755]
[1750200620855,1.54047416,647.48,646.71,1.53847755]
[1750200622355,0.26889198,647.55,646.68,1.45]
[1750200623454,1.15548761,647.41,646.68,1.45]
[1750200623955,1.15548761,647.44,646.77,1.53847564]
[1750200624153,1.15548761,647.45,646.76,1.53847564]
[1750200624454,1.15548761,647.45,646.77,1.53847564]
[1750200625454,0.26886393,647.67,646.68,1.45]
[1750200625455,1.15548761,647.46,646.76,1.53847564]
[1750200625751,1.15548761,647.47,646.76,1.53847564]
[1750200625951,1.15548761,647.46,646.76,1.53847564]
[1750200626150,1.15548761,647.47,646.76,1.53847564]
[1750200626455,1.15548761,647.47,646.75,1.53847564]
[1750200626757,1.15548761,647.48,646.75,1.84771414]
[1750200627256,1.15548761,647.48,646.75,0.3092385]
[1750200628357,1.15548761,647.49,646.75,0.3092385]
[1750200629153,1.15548761,647.49,646.75,1.84771414]
[1750200629352,1.15548761,647.49,646.75,0.3092385]
[1750200629852,1.15548761,647.48,646.75,0.3092385]
[1750200630058,1.15548761,647.47,646.75,0.3092385]
[1750200630357,1.15548761,647.39,646.75,0.3092385]
[1750200630754,1.15548761,647.38,646.75,0.3092385]
[1750200631155,1.15548761,647.4,646.75,0.3092385]
[1750200635062,1.15548761,647.41,646.75,0.3092385]
[1750200635765,1.15355529,647.41,646.75,0.3092385]
[1750200637666,1.15355529,647.4,646.75,0.3092385]
[1750200638366,1.15355529,647.4,646.76,1.45]
[1750200639867,1.15355529,647.58,646.77,0.30922893]
[1750200640365,1.15355529,647.59,646.77,0.30922893]
[1750200640766,1.15355529,647.6,646.77,0.30922893]
[1750200641561,1.15355529,647.61,646.77,0.30922893]
[1750200642964,1.15355529,647.64,646.77,0.30922893]
[1750200643368,1.15355529,647.65,646.77,0.30922893]
[1750200643964,1.15355529,647.66,646.77,0.30922893]
[1750200644164,1.15355529,647.64,646.77,0.30922893]
[1750200644368,0.26881097,647.76,646.77,0.30922893]
[1750200644369,1.15355529,647.63,646.77,0.30922893]
[1750200644568,1.15355529,647.65,646.77,0.30922893]
[1750200644868,1.15355529,647.66,646.77,0.30922893]
[1750200647071,1.15355529,647.67,646.77,0.30922893]
[1750200648874,1.15355529,647.67,646.78,1.063]
[1750200649078,1.15355529,647.67,646.79,0.30921937]
[1750200649780,1.15355529,647.65,646.79,0.30921937]
[1750200652680,1.15355529,647.64,646.79,0.30921937]
[1750200653380,1.15355529,647.65,646.79,0.30921937]
[1750200653581,1.15355529,647.64,646.79,0.30921937]
[1750200654277,1.15355529,647.63,646.79,1.84769501]
[1750200654581,1.15355529,647.62,646.81,1.53847564]
[1750200655076,1.15355529,647.63,646.82,0.30920503]
[1750200655778,1.15355529,647.62,646.82,0.30920503]
[1750200658278,1.15355529,647.62,646.82,1.84768067]
[1750200658479,1.15355529,647.62,646.82,0.30920503]
[1750200658783,1.15355529,647.62,646.82,1.84768067]
[1750200660080,1.15355529,647.62,646.83,1.449]
[1750200660285,1.15355529,647.62,646.84,0.30919547]
[1750200661589,1.15355529,647.6,646.84,0.30919547]
[1750200661785,1.15355529,647.59,646.84,0.30919547]
[1750200661986,1.15355529,647.6,646.84,0.30919547]
[1750200662489,1.15355529,647.59,646.84,0.30919547]
[1750200663485,1.15355529,647.65,646.84,0.30919547]
[1750200665692,1.15355529,647.64,646.84,0.30919547]
[1750200667991,1.15355529,647.62,646.84,0.30919547]
[1750200670589,1.15355529,647.61,646.84,0.30919547]
[1750200671393,1.15355529,647.62,646.84,0.30919547]
[1750200672393,1.15355529,647.61,646.84,0.30919547]
[1750200673394,1.15355529,647.57,646.84,0.30919547]
[1750200674195,1.15355529,647.56,646.84,0.30919547]
[1750200674994,1.15355529,647.53,646.84,0.30919547]
[1750200675196,1.15355529,647.5,646.84,0.30919547]
[1750200676092,1.15355529,647.49,646.84,0.30919547]
[1750200680099,1.15355529,647.48,646.84,0.30919547]
[1750200681297,2.57953238,647.76,646.84,0.30919547]
[1750200681298,1.15355529,647.47,646.84,0.30919547]
[1750200682399,1.15355529,647.48,646.84,0.30919547]
[1750200683104,1.15355529,647.47,646.84,0.30919547]
[1750200684204,1.15355529,647.47,646.85,1.159]
[1750200685009,1.15355529,647.46,646.85,1.159]
[1750200687015,1.15355529,647.46,646.86,1.449]
[1750200687911,1.15355529,647.47,646.86,1.449]
[1750200688216,1.15355529,647.46,646.86,1.449]
[1750200688415,1.15355529,647.5,646.86,1.449]
[1750200689315,1.15355529,647.51,646.86,1.449]
[1750200690311,1.15355529,647.5,646.86,1.449]
[1750200691015,1.15355529,647.48,646.86,1.449]
[1750200691312,1.15355529,647.49,646.86,1.449]
[1750200691516,1.15355529,647.48,646.86,1.449]
[1750200691812,1.15355529,647.5,646.86,1.449]
[1750200692416,1.15355529,647.49,646.86,1.449]
[1750200693314,1.15355529,647.48,646.86,1.449]
[1750200693917,1.15355529,647.49,646.86,1.449]
[1750200694419,1.15355529,647.48,646.86,1.449]
[1750200696317,1.15355529,647.47,646.86,1.449]
[1750200698221,1.15355529,647.45,646.86,2.98747564]
[1750200698421,1.15355529,647.44,646.87,1.53847564]
[1750200699317,1.15355529,647.43,646.88,1.53847564]
[1750200699820,1.15355529,647.44,646.88,1.53847564]
[1750200701219,1.15355529,647.43,646.88,1.53847564]
[1750200701422,1.15355529,647.44,646.88,1.53847564]
[1750200702724,1.15355529,647.43,646.88,1.53847564]
[1750200707430,1.15355529,647.43,646.89,1.53847564]
[1750200710032,1.15355529,647.42,646.88,1.53847564]
[1750200710333,1.15355529,647.43,646.89,1.53847564]
[1750200710834,1.15355529,647.42,646.88,1.53847564]
[1750200711035,2.31072141,647.63,646.86,1.449]
[1750200711036,1.15355529,647.44,646.86,1.449]
[1750200713039,1.15355529,647.44,646.85,2.69747564]
[1750200713836,1.15355529,647.45,646.85,1.159]
[1750200715440,1.15355529,647.44,646.85,1.159]
[1750200716339,1.15355529,647.44,646.84,0.30919547]
[1750200716536,1.15355529,647.44,646.86,1.222]
[1750200718143,1.15355529,647.44,646.87,1.014]
[1750200720245,1.15355529,647.43,646.87,1.014]
[1750200720644,1.15355529,647.44,646.87,1.014]
[1750200720845,1.15355529,647.43,646.87,2.55247564]
[1750200721244,1.15355529,647.42,646.87,2.55247564]
[1750200723144,1.15355529,647.41,646.87,2.55247564]
[1750200723743,1.15355529,647.4,646.91,1.53847564]
[1750200723949,1.54065015,647.5,646.87,1.014]
[1750200723950,1.15355529,647.43,646.87,1.014]
[1750200724848,1.15355529,647.42,646.87,1.014]
[1750200730751,1.15355529,647.32,646.87,1.014]
[1750200731053,1.15355529,647.31,646.87,1.014]
[1750200731549,1.15355529,647.3,646.87,1.014]
[1750200732250,1.15355529,647.29,646.87,1.014]
[1750200732455,1.15355529,647.3,646.87,1.014]
[1750200733654,1.15355529,647.31,646.87,1.014]
[1750200735962,1.15355529,647.32,646.87,1.014]
[1750200736354,1.15355529,647.33,646.87,1.014]
[1750200738155,1.15355529,647.33,646.88,1.296]
[1750200738459,1.15355529,647.34,646.88,1.296]
[1750200738656,1.15355529,647.33,646.88,1.296]
[1750200739561,1.15355529,647.34,646.88,1.296]
[1750200740561,1.15355529,647.3,646.88,1.296]
[1750200741461,1.15355529,647.31,646.88,1.296]
[1750200742763,1.15355529,647.38,646.88,1.296]
[1750200742962,1.15355529,647.35,646.88,1.296]
[1750200743661,1.15355529,647.34,646.88,1.296]
[1750200744057,0.47666338,647.51,646.88,1.296]
[1750200744262,1.15541036,647.34,646.88,1.296]
[1750200744460,1.15541036,647.35,646.88,1.296]
[1750200745559,1.15541036,647.37,646.88,1.296]
[1750200745761,1.15541036,647.18,646.88,1.296]
[1750200746461,1.15541036,647.19,646.88,1.296]
[1750200746662,1.15541036,647.16,646.88,1.296]
[1750200747361,1.15541036,647.15,646.88,1.296]
[1750200747566,1.15541036,647.16,646.88,1.296]
[1750200748066,1.15541036,647.16,646.89,1.609]
[1750200748367,1.15541036,647.18,646.89,1.609]
[1750200748563,1.15541036,647.15,646.89,1.609]
[1750200749568,1.15541036,647.16,646.89,1.609]
[1750200750367,1.15541036,647.17,646.89,1.609]
[1750200752468,1.15541036,647.18,646.89,1.609]
[1750200753170,1.15541036,647.19,646.89,1.609]
[1750200753370,1.15541036,647.2,646.89,1.609]
[1750200753566,1.15541036,647.19,646.89,1.609]
[1750200754070,1.15541036,647.2,646.89,1.609]
[1750200755573,1.15541036,647.19,646.89,1.609]
[1750200758276,1.15541036,647.19,646.9,1.449]
[1750200763074,1.15541036,647.18,646.9,1.449]
[1750200764679,1.15541036,647.24,646.9,1.449]
[1750200766775,2.31072141,647.57,646.9,1.449]
[1750200766980,1.14959893,647.24,646.9,1.449]
[1750200768979,1.14959893,647.23,646.9,1.449]
[1750200770479,1.14959893,647.24,646.9,1.449]
[1750200770676,1.14959893,647.23,646.9,1.449]
[1750200771883,1.14959893,647.24,646.9,1.449]
[1750200772080,1.14959893,647.23,646.9,1.449]
[1750200774485,1.14959893,647.18,646.9,1.449]
[1750200775181,1.14959893,647.17,646.9,1.449]
[1750200775788,1.14959893,647.18,646.9,1.449]
[1750200776887,1.14959893,647.2,646.9,1.449]
[1750200777090,1.14959893,647.18,646.9,1.449]
[1750200778085,1.14959893,647.19,646.9,1.449]
[1750200781395,1.14959893,647.18,646.9,1.449]
[1750200785592,1.14959893,647.17,646.9,1.449]
[1750200786291,1.14959893,647.16,646.9,1.449]
[1750200786495,0.26881097,647.76,646.36,1.53366713]
[1750200786496,1.14959893,647.15,646.36,1.53366713]
[1750200786691,1.14959893,647.15,646.91,1.386]
[1750200788896,1.14959893,647.15,646.91,2.374]
[1750200789391,1.14959893,647.14,646.91,2.374]
[1750200789793,1.14959893,647.15,646.91,2.374]
[1750200790396,1.14959893,647.14,646.91,2.374]
[1750200791396,1.14959893,647.13,646.91,2.374]
[1750200791895,1.14959893,647.18,646.91,2.374]
[1750200793701,1.14959893,647.17,646.91,2.374]
[1750200797397,1.14959893,647.15,646.91,2.374]
[1750200797802,1.14959893,647.16,646.91,2.374]
[1750200798601,1.14959893,647.15,646.91,2.374]
[1750200799502,1.14959893,647.14,646.91,2.374]
[1750200800400,1.14959893,647.13,646.91,2.374]
[1750200800800,1.14959893,647.11,646.91,2.374]
[1750200801300,1.14959893,647.1,646.91,2.374]
[1750200801599,1.14959893,647.09,646.91,2.374]
[1750200801906,1.14959893,647.06,646.91,2.374]
[1750200802205,1.53279857,647.18,646.91,2.374]
[1750200802399,1.15533983,647.05,646.91,2.374]
[1750200803200,1.15533983,647.06,646.91,2.374]
[1750200803404,1.15533983,647.05,646.91,2.374]
[1750200804301,1.53279857,647.17,646.91,2.374]
[1750200804901,1.15675598,647.03,646.91,2.374]
[1750200806004,1.15675598,647.03,646.91,1.386]
[1750200806204,1.15675598,647.0,646.91,1.386]
[1750200807606,1.15675598,646.99,646.91,1.386]
[1750200807803,1.53279857,647.13,646.91,1.386]
[1750200808505,0.47758925,647.25,646.91,1.386]
[1750200808705,1.15771226,647.0,646.91,1.386]
[1750200810707,1.15771226,647.0,646.76,1.122]
[1750200811206,1.15771226,647.01,646.76,1.122]
[1750200811403,1.15771226,647.02,646.76,1.122]
[1750200812913,1.15771226,647.01,646.76,1.122]
[1750200813111,1.15771226,647.01,646.77,1.602]
[1750200813810,1.15771226,647.02,646.77,1.602]
[1750200814308,1.15771226,647.01,646.77,1.602]
[1750200814507,1.15771226,646.98,646.77,1.602]
[1750200814811,1.15771226,646.97,646.77,1.602]
[1750200815013,1.15771226,646.95,646.77,1.602]
[1750200816310,1.15771226,646.93,646.77,1.602]
[1750200816510,1.15771226,646.94,646.77,1.602]
[1750200817609,1.15771226,646.95,646.77,1.602]
[1750200818012,1.15771226,646.93,646.77,1.602]
[1750200818608,1.15771226,646.94,646.77,1.602]
[1750200818910,1.15771226,646.95,646.77,1.602]
[1750200819513,1.15771226,646.94,646.77,1.602]
[1750200820315,1.15771226,646.93,646.77,1.602]
[1750200820616,1.15771226,646.94,646.77,1.602]
[1750200820818,1.15771226,646.95,646.77,1.602]
[1750200822618,1.15771226,646.96,646.77,1.602]
[1750200823618,1.15771226,646.95,646.77,1.602]
[1750200824319,1.15771226,646.94,646.77,1.602]
[1750200824615,1.15771226,646.95,646.77,1.602]
[1750200824814,1.15771226,646.94,646.77,1.602]
[1750200827619,1.15771226,646.95,646.77,1.602]
[1750200828120,1.15771226,646.94,646.77,1.602]
[1750200828520,1.15771226,646.95,646.77,1.602]
[1750200830419,1.15771226,646.96,646.77,1.602]
[1750200830617,1.15771226,646.95,646.77,1.602]
[1750200832518,1.15771226,646.94,646.77,1.602]
[1750200832720,2.31072141,647.15,646.77,1.602]
[1750200832721,1.15771226,646.95,646.77,1.602]
[1750200834723,1.15771226,646.97,646.77,1.602]